{"text_format":"3","workbook":"xlsx","n_sheets":1,"sheets":["Sheet1"],"read":"whole","date_system":"1900"}

{"sheet":"Sheet1","index":0,"n_rows":39,"n_cols":10,"rows_kept":39,"merged":[[0,0,0,9],[1,0,2,0],[1,1,2,1],[1,2,2,2],[1,3,2,3],[1,4,2,4],[1,5,1,6],[1,7,1,8],[37,0,37,4],[38,0,38,9]]}
["2025年“F”项目土石方、挡墙工程专业分包班组清单及报价表"]
["序号","项目名称","项目特征","单位","暂定工程量","金额（元）",null,"金额（元）"]
[{"$nulls":5},"全费用单价限价","合价","班组所报单价","合价","备注"]
["一、土石方工程"]
[1,"清表","1.现状的乔灌木、地被植物和地表其他内容的清理、杂树砍伐。\n2.土石类别：综合\n3.开挖方式：由投标人自行考虑，包含在投标报价中。\n4.场内转运方式及运距：由投标人自行考虑，包含在投标报价中。\n5.清表杂物外运距离、运输方式：弃土场为甲方指定弃土场，弃土场费用由投标人自行考虑在报价中，弃土运距约为6-8km，如投标人自行确定弃土场地，由投标人将承担后续责任和风险。\n6.其他：满足设计及现行技术、质量验收规范要求。所有设计中包含的相关工作内容及其余未尽事宜，由承包人自行考虑，包含在投标报价中。\n7.工程量计算规则：以甲方现场收方为准","m2",{"v":22000,"d":"22000.00"},{"v":3,"d":"3.00"},{"$f":"F5*E5","v":{"v":66000,"d":"66000.00"}}]
[2,"场内土石方挖运填\n","1.完成项目范围内场平及管沟、基坑等土石方开挖、转运、回填工程，工作内容包括但不限于以下工程内容：（1）土石方开挖、石方破碎大改小、土石方转运（含红线范围内取土回填转运，运距综合考虑）、回填等；开挖的各类土、石综合（详见地勘），现场建(废)渣等综合考虑；施工区域换填、回填桥梁作业区域土石方。\n2.填方来源：来源为现场红线内原有土石方，场内综合运距1-2km。\n3.开挖、回填标高：挖填标高均应满足设计要求，误差控制在设计标高±5cm内。\n4.开挖方式、场内运输方式：投标人自行确定。\n5.开挖方案和边坡施工防护及对管线、构筑物、建筑物等采取的保护措施须经业主批准，满足安全、文明施工相关规范及规定，包含在投标报价中。\n6.车行道开挖和回填后土基回弹模量≥40MPa应达到设计和规范要求，游步道开挖和回填后土基回弹模量≥20MPa，并承担检测费用；\n7.车行道及人车合行压实系数要求：分层填筑厚度不大于300mm\n0-800mm路基深度，压实系数不小于0.95\n800-1500mm路基深度，压实系数不小于0.94\n1500mm以上路基深度，压实系数不小于0.9，并承担检测费用。\n8.独立人行道压实度要求：分层填筑厚度不大于300mm\n1500mm以下路基深度，压实度不小于0.93\n1500mm以上路基深度，压实系数不小于0.9，并承担检测费用。\n9.其他：临边及孔洞的防护、进出车辆冲洗管理、场内外路面清洗管理、投标单位自己操作人员的劳保防护用品、临时用水用电（含水电费用）、必要安全措施等由投标单位承担；现场出现超挖和欠挖现象，造成的损失由投标单位承担；施工内容涉及的检测（复检）费用和送样检测等费用由投标单位承担；机械进、出场费用（含多次进出场）由投标单位综合考虑，包含在投标报价中。                                                    \n10.其余要求：施工过程中应满足城管和环保要求。为保证施工工期并达到环保要求，夜间施工产生的措施费及赶工费等费用包含在综合单价中，履约过程中不接受调价。\n11.工程量以测绘回填工程量以m³计算。","m3",{"v":19000,"d":"19000.00"},{"v":22,"d":"22.00"},{"$f":"F6*E6","v":{"v":418000,"d":"418000.00"}}]
[3,"土石方开挖、外弃","1.完成项目范围内场平、管沟、基坑等土石方开挖及外弃，工作内容包括但不限于以下工程内容：（1）开挖、收集整理、场内转运及外弃（费用由投标人综合考虑）；（2）土石方开挖、石方破碎大改小、转运、土石方外弃等；开挖的各类土、石(含淤泥)综合（详见地勘），现场建(废)渣等综合考虑。（3）土石方上下车、场内外运输、弃土场费等相关费用包含在报价内。\n2.外弃内容：开挖的各类土、石(含淤泥)综合，现场建(废)渣等综合考虑 \n3.外弃运输方式、运距、弃土场地及费用:弃土场为甲方指定弃土场，弃土场费用由投标人自行考虑在报价中，弃土运距约为6-8km ；如投标人自行确定弃土场地，由投标人将承担后续责任和风险。\n4.开挖深度：开挖标高应满足设计要求，误差控制在设计标高±5cm内。\n5.开挖方式、场内运输方式：投标人自行确定。\n6.开挖方案和边坡施工防护及对管线、构筑物、建筑物等采取的保护措施须经业主批准，满足安全、文明施工相关规范及规定，包含在投标报价中。\n7.车行道开挖和回填后土基回弹模量≥40MPa应达到设计和规范要求，游步道开挖和回填后土基回弹模量≥20MPa，并承担检测费用。\n8.车行道及人车合行压实系数要求：分层填筑厚度不大于300mm\n0-800mm路基深度，压实系数不小于0.95\n800-1500mm路基深度，压实系数不小于0.94\n1500mm以上路基深度，压实系数不小于0.9，并承担检测费用。\n9.独立人行道压实度要求：分层填筑厚度不大于300mm\n1500mm以下路基深度，压实度不小于0.93\n1500mm以上路基深度，压实系数不小于0.9，并承担检测费用。\n10.其他：临边及孔洞的防护、进出车辆冲洗管理、场内外路面清洗管理、投标单位自己操作人员的劳保防护用品、临时用水用电（含水电费用）、必要安全措施等由投标单位承担；现场出现超挖和欠挖现象，造成的损失由投标单位承担；施工内容的检测（复检）费用和送样检测等费用由投标单位承担；机械进、出场费用（含多次进出场）由投标单位综合考虑，包含在投标报价中。                                                    \n11.其余要求：施工过程中应满足城管和环保要求。为保证施工工期并达到环保要求，夜间施工产生的措施费及赶工费等费用包含在综合单价中，履约过程中不接受调价。\n12.工程量以测绘开挖方量减去回填方量以m³计算。","m3",{"v":31000,"d":"31000.00"},{"v":30,"d":"30.00"},{"$f":"F7*E7","v":{"v":930000,"d":"930000.00"}}]
["二、特殊路基处理"]
[4,"淤泥及软土开挖、装运、外弃","1.完成项目范围内水田、鱼塘路段软基处治，工作内容包括但不限于以下工程内容：（1）淤泥及软土开挖、装运、外弃（3）淤泥及软土上下车、场内外运输、弃土场费等相关费用包含在报价内。\n3.外弃运输方式、运距、弃土场地及费用:弃土场为甲方指定弃土场，弃土场费用由投标人自行考虑在报价中，弃土运距约为6-8km ，如投标人自行确定弃土场地，由投标人将承担后续责任和风险。\n4.开挖深度：开挖标高应满足设计要求，误差控制在设计标高±5cm内。\n5.开挖方式、场内运输方式：投标人自行确定。\n6.开挖方案和边坡施工防护及对管线、构筑物、建筑物等采取的保护措施须经业主批准，满足安全、文明施工相关规范及规定，包含在投标报价中。\n7.其他：临边及孔洞的防护、进出车辆冲洗管理、场内外路面清洗管理、投标单位自己操作人员的劳保防护用品、临时用水用电（含水电费用）、必要安全措施等由投标单位承担；现场出现超挖和欠挖现象，造成的损失由投标单位承担；施工内容的检测（复检）费用和送样检测等费用由投标单位承担；机械进、出场费用（含多次进出场）由投标单位综合考虑，包含在投标报价中。                                                    \n8.其余要求：施工过程中应满足城管和环保要求。为保证施工工期并达到环保要求，夜间施工产生的措施费及赶工费等费用包含在综合单价中，履约过程中不接受调价。\n9.工程量以现场收方为准","m3",{"v":200,"d":"200.00"},{"v":30,"d":"30.00"},{"$f":"F9*E9","v":{"v":6000,"d":"6000.00"}}]
[5,"外购片石换填","1.片石来源：场外外购\n2.强度要求：不低于MU30\n3.回填要求：利用片石换填,挖软基前设置临时排水沟,将软弱地基全部挖除后,待地基承载力达到150Kpa以上。开挖后要压实,再换填;如若软霸地基深度大于2.5米,根据现场情况进行抛石填淤处理:片石饱和抗压强度不能小于30Mpa，需分层碾压密实,最大分层厚度不能大于50cm。页岩、泥岩、易风化岩、遇水易容岩石不能用于换填；换填材料必须满足规范要求。\n4.场内外二次及多次转运由投标人综合考虑\n5.工程量以现场收方为准\n6.压实度要求：压实系数不小于0.95\n7.做法：满足设计及现行施工技术、质量验收规范要求","m3",{"v":200,"d":"200.00"},{"v":180,"d":"180.00"},{"$f":"F10*E10","v":{"v":36000,"d":"36000.00"}}]
[6,"20cm厚砂垫层","1.位置：片石换填区域顶部\n2.材质：石粉砂\n3.厚度：压实后完成厚度20cm\n4.压实度要求：压实系数不小于0.95\n5.做法：满足设计及现行施工技术、质量验收规范要求","m3",{"v":50,"d":"50.00"},{"v":200,"d":"200.00"},{"$f":"F11*E11","v":{"v":10000,"d":"10000.00"}}]
[7,"防渗土工布","1.材质要求：两布一膜\n2.克重规格：400g/m2\n3.铺设位置：砂砾石层上方\n4.搭接量、层间附加层、加强层计入本项目综合单价内,结算时不单独计算该部分工程量。\n5.工程量计算规则：以现场实际收方为准","m2",{"v":450,"d":"450.00"},{"v":12,"d":"12.00"},{"$f":"F12*E12","v":{"v":5400,"d":"5400.00"}}]
["三、混凝土挡土墙"]
[8,"C15混凝土垫层浇筑（混凝土甲供）","1.混凝土强度等级：C15商品砼（混凝土甲供）（含模板）\n2.砼浇筑采用的机械种类及方式：投标人自行确定，泵车、天泵费用由发包人承担，投标人负责混凝土运输道路及浇筑场地的修整，费用由投标人综合考虑在报价中；\n3.垫层厚度：100mm厚；\n4.模板安拆及固定方式由投标人自行考虑\n5.做法：满足设计及现行施工技术、质量验收规范要求","m3",{"v":10,"d":"10.00"},{"v":60,"d":"60.00"},{"$f":"F14*E14","v":{"v":600,"d":"600.00"}},null,null,"砼甲供\n损耗3%"]
[9,"C20混凝土挡土墙（混凝土甲供）","1.混凝土强度等级：C20混凝土挡土墙（混凝土甲供）\n2.模板单独计算\n3.变形缝：单列\n4.砼浇筑采用的机械种类及方式：投标人自行考虑，泵车、天泵费用由发包人承担，投标人负责混凝土运输道路及浇筑场地的修整，费用由投标人综合考虑在报价中；；\n5.分层浇筑所需措施费用由投标人自行考虑\n6.做法：满足设计及现行施工技术、质量验收规范要求","m3",185.58,{"v":60,"d":"60.00"},{"$f":"F15*E15","v":{"v":11134.8,"d":"11134.80"}},null,null,"砼甲供\n损耗3%"]
[10,"沥青麻絮变形缝","1.材质：沥青麻絮\n2.缝宽：20~30mm\n3.设置要求：挡墙每隔10~15m或地质变化较大处设置沉降缝,缝宽2~3cm,用沥青麻絮三面填塞,填塞深度不小于15cm设置变形缝产生的措施费由投标人综合考虑在投标报价中。\n4.工程量计算规则：按挡土墙变形缝两侧及顶部长度计算，以现场实际收方为准","m",{"v":110.7,"d":"110.70"},{"v":30,"d":"30.00"},{"v":3321,"d":"3321.00"}]
[11,"粘土胶泥防渗层","1.铺设位置：挡墙墙背碎石过滤层下\n2.铺设坡比：1:10\n3.做法：满足设计及现行施工技术、质量验收规范要求","m3",9.75,{"v":50,"d":"50.00"},{"v":487.5,"d":"487.50"}]
[12,"防渗土工布","1.材质要求：两布一膜\n2.克重规格：400g/m2\n3.铺设位置：在泄水孔底部铺设一层机织防渗土工布\n4.搭接量、层间附加层、加强层计入本项目综合单价内,结算时不单独计算该部分工程量。\n5.工程量计算规则：以现场实际收方为准","m2",{"v":90,"d":"90.00"},{"v":12,"d":"12.00"},{"v":1080,"d":"1080.00"}]
[13,"碎石反滤层及墙背回填","1.规格：碎石反滤层及墙背回填\n2.坡比：靠墙一侧坡比1:0.5\n3.墙背回填：墙体应达到设计强度75%以上,方可进行墙背回填。墙背填料应符合规范要求。墙背回填填料与挡墙顶之间的高差需≤1.2m,并应分层回填分层填筑夯实,可采用便捷式振动夯或平板夯,且压实度≥94%。\n3.其他：满足设计及现行施工技术、质量验收规范要求","m3",51.45,{"v":300,"d":"300.00"},{"v":15435,"d":"15435.00"}]
[14,"泄水管 φ50PVC管","1.泄水孔规格、材质：PVC管 φ50PVC（含管件）\n2.布置间距：泄水孔预埋φ50mmPVC管,挡土墙采用2*2m梅花形布置,水平间距2m、垂直距离2m布置。泄水孔间距2~3m,上下交错布置，孔内预埋φ5cmPVC管,PVC管应长出墙背10cm,其端部用渗水土工布包裹（土工布单列）,泄水孔出口应保证排水顺畅\n3.位置：墙身在填土线以上的部分或常水位以上的部分应分层设置泄水孔，衡重台处应增设一排泄水孔。当地下水较丰富地段,泄水孔应适当加密\n4.做法：满足设计及现行施工技术、质量验收规范要求","m",{"v":42.9,"d":"42.90"},{"v":22,"d":"22.00"},{"v":943.8,"d":"943.80"}]
[15,"过滤土工布（150g/m²）","1.材料类别：过滤土工布（150g/m²）；\n2.满足设计及规范要求；\n3.搭接量、层间附加层、加强层计入本项目综合单价内,结算时不单独计算该部分工程量。\n4.土工布包裹PVC管等降效费由投标人综合考虑在报价中\n5.其他：未尽事宜满足设计及现行技术、质量验收规范要求","m2",68.85,{"v":5.5,"d":"5.50"},{"v":378.675,"d":"378.68"}]
[16,"挡土墙模板","1.支模高度：综合考虑，超高模板费用不再另计\n2.模板类型：木模、组合钢模板、竹胶合板等综合；\n3.对拉螺栓、表面处理、打样、成品保护费及加固模板费用由承包人承担\n4.支架材料：钢管、竹、木支架综合，断面尺寸、材质、工艺等符合设计和施工验收规范要求；\n5.包含投标人根据自身技术能力要求所采用的本工程垂直运输，以及其他全部总价措施费，脚手架单列；\n6.本项目投标人应根据施工经验,现场实际情况和企业自身情况综合报价,不论采用何种支模方式综合报价","m2",539.04,{"v":60,"d":"60.00"},{"v":32342.4,"d":"32342.40"}]
[17,"双排脚手架","1.脚手架高度：脚手架形式综合考虑。                                                                                                                                                                                                                     2.脚手架类型：钢管脚手架 ，斜道、安全网等投标人综合考虑，不再另行计算。                                                                                                                                                      3.脚手架材料：钢管、脚手板、安全网、密目网、水平防护、立面防护网的材质、工艺等符合相关安全及施工验收规范要求                                                                                                                                                             4.材料场内运输、转运费用已综合考虑在单价中\n5.搭拆时间需满足进度及现场需求\n6.脚手架搭拆措施费，如脚手架垫块措施综合考虑在综合单价中。                                                                                                            7.工程量计算：按实际搭设面积计算","m2",913.44,{"v":28,"d":"28.00"},25576.32]
["四、管涵"]
[18,"C20混凝土浇筑（混凝土甲供）","1.类型：混凝土管形基础、边沟跌井、护坡边沟截水墙、护坡边沟\n2.混凝土强度等级：C20商品砼（混凝土甲供）\n3.砼浇筑采用的机械种类及方式：投标人自行考虑，泵车、天泵费用由发包人承担，投标人负责混凝土运输道路及浇筑场地的修整，费用由投标人综合考虑在报价中；\n4.截面尺寸：详见设计图纸；\n5.做法：满足设计及现行施工技术、质量验收规范要求","m3",{"$f":"(2.1+1.5+0.1+0.9)*3+(1.48+0.91+0.07+0.27)*3+(4.2+2.3+0.1+4.9)*4","v":67.99},{"v":60,"d":"60.00"},{"$f":"F25*E25","v":{"v":4079.4,"d":"4079.40"}},null,null,"砼甲供\n损耗3%"]
[19,"C25混凝土浇筑（混凝土甲供）","1.类型：混凝土一字墙身、混凝土一字墙基础\n2.混凝土强度等级：C25商品砼（混凝土甲供）\n3.砼浇筑采用的机械种类及方式：投标人自行考虑，泵车、天泵费用由发包人承担，投标人负责混凝土运输道路及浇筑场地的修整，费用由投标人综合考虑在报价中；\n4.截面尺寸：详见设计图纸；\n5.做法：满足设计及现行施工技术、质量验收规范要求","m3",{"$f":"(2.7+1.5)*3+(1.07+1.02)*3+(3.6+1.8)*4","v":40.47},{"v":60,"d":"60.00"},{"v":2428.2,"d":"2428.20"},null,null,"砼甲供\n损耗3%"]
[20,"M7.5浆砌MU30片石铺砌截水墙、急流槽","1.砌筑标号：M7.5砂浆浆砌\n2.片石要求：MU30\n3.砌筑类型：截水墙、石阶梯急流槽\n4.场内外二次及多次转运由投标人综合考虑\n5.做法：满足设计及现行施工技术、质量验收规范要求","m3",{"$f":"(6.7+0.2)*4","v":{"v":27.6,"d":"27.60"}},{"v":460,"d":"460.00"},{"v":12696,"d":"12696.00"}]
[21,"D500承插钢筋混凝土管","1.规格：D500承插钢筋混凝土管 II级\n2.场内外二次及多次转运由投标人综合考虑\n3.安装及吊装方式：由投标人综合考虑\n4.接口处固定镀锌网，表面抹水泥砂浆密封\n5.做法：满足设计及现行施工技术、质量验收规范要求","m",{"v":12,"d":"12.00"},{"v":250,"d":"250.00"},{"v":3000,"d":"3000.00"}]
[22,"D750承插钢筋混凝土管","1.规格：D750承插钢筋混凝土管 II级\n2.场内外二次及多次转运由投标人综合考虑\n3.安装及吊装方式：由投标人综合考虑\n4.接口处固定镀锌网，表面抹水泥砂浆密封\n5.做法：满足设计及现行施工技术、质量验收规范要求","m",{"$f":"4+24","v":{"v":28,"d":"28.00"}},{"v":410,"d":"410.00"},{"v":11480,"d":"11480.00"}]
[23,"D1000承插钢筋混凝土管","1.规格：D1000承插钢筋混凝土管 II级\n2.场内外二次及多次转运由投标人综合考虑\n3.安装及吊装方式：由投标人综合考虑\n4.接口处固定镀锌网，表面抹水泥砂浆密封\n5.做法：满足设计及现行施工技术、质量验收规范要求","m",{"$f":"11.5+19","v":{"v":30.5,"d":"30.50"}},{"v":570,"d":"570.00"},{"v":17385,"d":"17385.00"}]
[24,"D2000承插钢筋混凝土管","1.规格：D2000承插钢筋混凝土管 II级\n2.场内外二次及多次转运由投标人综合考虑\n3.安装及吊装方式：由投标人综合考虑\n4.接口处固定镀锌网，表面抹水泥砂浆密封\n5.做法：满足设计及现行施工技术、质量验收规范要求","m",{"v":6,"d":"6.00"},{"v":1850,"d":"1850.00"},{"v":11100,"d":"11100.00"}]
[25,"混凝土模板","1.支模高度：综合考虑，超高模板费用不再另计\n2.模板类型：木模、组合钢模板、竹胶合板等综合；\n3.对拉螺栓、表面处理、打样、成品保护费及加固模板费用由承包人承担\n4.支架材料：钢管、竹、木支架综合，断面尺寸、材质、工艺等符合设计和施工验收规范要求；\n5.包含投标人根据自身技术能力要求所采用的本工程垂直运输，以及其他全部总价措施费，脚手架由投标人综合考虑；\n6.本项目投标人应根据施工经验,现场实际情况和企业自身情况综合报价,不论采用何种支模方式综合报价","m2",{"v":400,"d":"400.00"},{"v":65,"d":"65.00"},{"v":26000,"d":"26000.00"}]
["五、临时便道"]
[26,"C25混凝土道路面层浇筑（混凝土甲供）","1.混凝土等级：综合考虑（混凝土甲供）\n2.混凝土道路面层浇筑包含新建道路面层及局部修补道路面层(局部修补降效费用综合考虑在投标报价中)\n3.面层处理：面层抹平、拉毛、切缝等满足规范要求\n4.砼浇筑采用的机械种类及方式：投标人自行考虑，泵车、天泵费用由发包人承担，投标人负责混凝土运输道路及浇筑场地的修整，费用由投标人综合考虑在报价中；\n5.道路模板安拆及固定方式由投标人自行考虑\n6.做法：满足设计及现行施工技术、质量验收规范要求","m3",{"v":120,"d":"120.00"},{"v":60,"d":"60.00"},{"$f":"F34*E34","v":{"v":7200,"d":"7200.00"}},null,null,"砼甲供\n损耗3%"]
[27,"水泥稳定碎石层（水泥含量） 5%摊铺","1.水泥含量：5%\n2.材料规格、厚度：厚度由甲方现场确定\n3.压实系数：满足设计及现行施工技术、质量验收规范要求\n4.其他：满足设计及现行施工技术、质量验收规范要求\n5.工程量计算规则：按压实后完成厚度进行计量","m3",{"v":150,"d":"150.00"},{"v":260,"d":"260.00"},{"$f":"F35*E35","v":{"v":39000,"d":"39000.00"}}]
[28,"拆除混凝土道路","1.拆除厚度及方式：由与投标人综合考虑\n2.外弃运输方式、运距、弃土场地及费用:弃土场为甲方指定弃土场，弃土场费用由投标人自行考虑在报价中，弃土运距约为6-8km，如投标人自行确定弃土场地，由投标人将承担后续责任和风险。\n3.切缝：切缝深度满足拆除混凝土道路要求，费用综合考虑在投标报价中\n4.工程量计算规则：以现场实际收方为准\n5.做法：满足设计及现行施工技术、质量验收规范要求","m3",{"v":50,"d":"50.00"},{"v":110,"d":"110.00"},{"$f":"F36*E36","v":{"v":5500,"d":"5500.00"}}]
[29,"租赁成品钢板洗车池","1.名称：租赁成品钢板洗车池\n2.该项现场产生时计取，包干使用\n3.使用时间段：开工至竣工\n4.60日历天内非甲方原因造成工期延误，导致租赁时间变化，该费用均为包干计取，不作调整。\n5.成品钢板洗车池需满足现场使用需求\n6.装运及安装、拆除、运输等费用由投标人综合考虑\n7.数量：两个成品钢板洗车池","项",{"v":1,"d":"1.00"},{"v":20000,"d":"20000.00"},{"$f":"F37*E37","v":{"v":20000,"d":"20000.00"}}]
["合计",{"$nulls":5},{"$f":"SUM(G5:G37)","v":{"v":1722568.095,"d":"1722568.10"}}]
["注：\n1、全费用综合单价，包括人工费、材料费、机械费、管理费、利润、措施费、大型机械进出场费、降排水费、规费、销项增值税和附加税、弃土费，满足环保、城管、政策要求所需的施工措施费及赶工等费用；以上工程量均为暂估量，土石方工程以测绘报告及现场收方单为准，不因结算工程量与合同工程量不一致而调整综合单价。\n2.现场安全环保文明施工管理要求：（1）由公司统一发放印有“兴绿园林”字样和LOGO的安全帽和反光背心，班组按实名制领取，使用完后交回项目部，否则按采购费用扣款，其余参照合同附件中安全环保管理协议执行。（2）现场雾炮机由甲方提供，投标单位需安排人员管理使用，人工费、油费、维修费及管理费用综合考虑到投标报价中，不单独计取。  （3）防尘网由甲方提供，投标单位安排人员进行覆盖、回收、现场转移等，人工费综合考虑到投标报价中，不单独计取。（4）彩条布（不少于3000平方米）由投标人准备并在施工期间按甲方要求覆盖，材料费、人工费、管理费用综合考虑到投标报价中，不单独计取。（5）现场机械均实行一机一炮，每台挖掘机械均应配备随机雾炮机，工作时需保持雾炮机正常工作，加水、加油、维护等费用综合考虑在报价中。（6）机械配置：要求配备挖机不少于3台，装载机或推土机不少于1台，水车（带雾炮机）不少于1台。（7）我司不提供水电接驳口及临时冲洗设施，由投标人自行考虑；\n3.投标人报价前自行对现场进行踏勘。\n4.场外运输手续办理由投标人自行办理。\n5.采用铺设钢板保护道路等措施费用由投标人综合考虑在投标报价中。\n6.场内二次及多次转运费用由投标人综合考虑在投标报价中。"]